{"text_format":"2","workbook":"xlsx","n_sheets":4,"sheets":["Alte E-Mail Adressen","Neue E-Mail Adressen","Abmeldungen","Anmeldungen"],"not_rendered":{"charts":0,"images":0,"macros":0,"external_links":0,"defined_names":0,"comments":0,"pivot_tables":2},"unopened":[],"bounds":{"document_bytes":16777216,"sheet_cells":100000,"run_cost":"one","rows_first":2000,"rows_last":500,"rows_between":2000,"halvings":0,"cell_chars":16384,"cell_head_chars":4096},"cells_cut":0,"cells_raw":0,"read":"whole","date_system":"1900"}

{"sheet":"Alte E-Mail Adressen","index":0,"n_rows":16,"n_cols":2,"rows_kept":16,"cut":false,"hidden":false,"merged":[]}
["Alte E-Mail Adressen","Unverändert"]
["studyabr@yahoo.ca",{"$f":"COUNTIF('Neue E-Mail Adressen'!A:A, 'Alte E-Mail Adressen'!A2)","v":1}]
["froodian@outlook.com",{"$f":"COUNTIF('Neue E-Mail Adressen'!A:A, 'Alte E-Mail Adressen'!A3)","v":1}]
["euice@live.com",{"$f":"COUNTIF('Neue E-Mail Adressen'!A:A, 'Alte E-Mail Adressen'!A4)","v":0}]
["chlim@live.com",{"$f":"COUNTIF('Neue E-Mail Adressen'!A:A, 'Alte E-Mail Adressen'!A5)","v":1}]
["dleconte@sbcglobal.net",{"$f":"COUNTIF('Neue E-Mail Adressen'!A:A, 'Alte E-Mail Adressen'!A6)","v":1}]
["eegsa@verizon.net",{"$f":"COUNTIF('Neue E-Mail Adressen'!A:A, 'Alte E-Mail Adressen'!A7)","v":1}]
["heine@yahoo.ca",{"$f":"COUNTIF('Neue E-Mail Adressen'!A:A, 'Alte E-Mail Adressen'!A8)","v":0}]
["jdhildeb@sbcglobal.net",{"$f":"COUNTIF('Neue E-Mail Adressen'!A:A, 'Alte E-Mail Adressen'!A9)","v":1}]
["hllam@comcast.net",{"$f":"COUNTIF('Neue E-Mail Adressen'!A:A, 'Alte E-Mail Adressen'!A10)","v":1}]
["reziac@msn.com",{"$f":"COUNTIF('Neue E-Mail Adressen'!A:A, 'Alte E-Mail Adressen'!A11)","v":1}]
["larry@gmail.com",{"$f":"COUNTIF('Neue E-Mail Adressen'!A:A, 'Alte E-Mail Adressen'!A12)","v":0}]
["isotopian@aol.com",{"$f":"COUNTIF('Neue E-Mail Adressen'!A:A, 'Alte E-Mail Adressen'!A13)","v":1}]
["hmbrand@hotmail.com",{"$f":"COUNTIF('Neue E-Mail Adressen'!A:A, 'Alte E-Mail Adressen'!A14)","v":0}]
["jmcnamara@yahoo.com",{"$f":"COUNTIF('Neue E-Mail Adressen'!A:A, 'Alte E-Mail Adressen'!A15)","v":0}]
["darin@mac.com",{"$f":"COUNTIF('Neue E-Mail Adressen'!A:A, 'Alte E-Mail Adressen'!A16)","v":0}]

{"sheet":"Neue E-Mail Adressen","index":1,"n_rows":12,"n_cols":2,"rows_kept":12,"cut":false,"hidden":false,"merged":[]}
["Neue E-Mail Adressen","Unverändert"]
["studyabr@yahoo.ca",{"$f":"COUNTIF('Alte E-Mail Adressen'!A:A,'Neue E-Mail Adressen'!A2)","v":1}]
["froodian@outlook.com",{"$f":"COUNTIF('Alte E-Mail Adressen'!A:A,'Neue E-Mail Adressen'!A3)","v":1}]
["isotopian@aol.com",{"$f":"COUNTIF('Alte E-Mail Adressen'!A:A,'Neue E-Mail Adressen'!A4)","v":1}]
["chlim@live.com",{"$f":"COUNTIF('Alte E-Mail Adressen'!A:A,'Neue E-Mail Adressen'!A5)","v":1}]
["dleconte@sbcglobal.net",{"$f":"COUNTIF('Alte E-Mail Adressen'!A:A,'Neue E-Mail Adressen'!A6)","v":1}]
["eegsa@verizon.net",{"$f":"COUNTIF('Alte E-Mail Adressen'!A:A,'Neue E-Mail Adressen'!A7)","v":1}]
["hllam@comcast.net",{"$f":"COUNTIF('Alte E-Mail Adressen'!A:A,'Neue E-Mail Adressen'!A8)","v":1}]
["jdhildeb@sbcglobal.net",{"$f":"COUNTIF('Alte E-Mail Adressen'!A:A,'Neue E-Mail Adressen'!A9)","v":1}]
["reziac@msn.com",{"$f":"COUNTIF('Alte E-Mail Adressen'!A:A,'Neue E-Mail Adressen'!A10)","v":1}]
["elmer@optonline.net",{"$f":"COUNTIF('Alte E-Mail Adressen'!A:A,'Neue E-Mail Adressen'!A11)","v":0}]
["fglock@outlook.com",{"$f":"COUNTIF('Alte E-Mail Adressen'!A:A,'Neue E-Mail Adressen'!A12)","v":0}]

{"sheet":"Abmeldungen","index":2,"n_rows":9,"n_cols":2,"rows_kept":9,"cut":false,"hidden":false,"merged":[]}
["Unverändert",0]
[]
["Alte E-Mail Adressen"]
["euice@live.com"]
["heine@yahoo.ca"]
["larry@gmail.com"]
["hmbrand@hotmail.com"]
["jmcnamara@yahoo.com"]
["darin@mac.com"]

{"sheet":"Anmeldungen","index":3,"n_rows":5,"n_cols":2,"rows_kept":5,"cut":false,"hidden":false,"merged":[]}
["Unverändert",0]
[]
["Neue E-Mail Adressen"]
["elmer@optonline.net"]
["fglock@outlook.com"]